bitfinex/quotes_BTCUSD_20250901
["timestamp","ask_amount","ask_price","bid_price","bid_amount"]
[1756702232971,0.75186828,107460.0,107450.0,0.001]
[1756702233870,0.18615022,107450.0,107430.0,0.19546054]
[1756702234070,0.1574,107440.0,107430.0,0.19546054]
[1756702234272,0.3435504,107440.0,107430.0,0.19546054]
[1756702234393,0.52298274,107450.0,107440.0,0.1861504]
[1756702234608,0.34355022,107450.0,107440.0,0.1861504]
[1756702235264,0.34355022,107450.0,107440.0,0.18619802]
[1756702236646,0.34355022,107450.0,107440.0,4.762e-05]
[1756702237064,0.34355022,107450.0,107440.0,0.00104762]
[1756702237484,0.68038274,107450.0,107440.0,0.00104762]
[1756702238373,0.52298274,107450.0,107440.0,4.762e-05]
[1756702238571,0.68242274,107450.0,107440.0,4.762e-05]
[1756702238774,0.68442274,107450.0,107440.0,4.762e-05]
[1756702239226,0.68242274,107450.0,107440.0,4.762e-05]
[1756702239645,0.18815022,107450.0,107440.0,4.762e-05]
[1756702239849,0.68042274,107450.0,107440.0,4.762e-05]
[1756702240053,0.68042274,107450.0,107440.0,0.18619802]
[1756702240386,0.68142274,107450.0,107440.0,0.18619802]
[1756702240634,0.68242274,107450.0,107440.0,0.18619802]
[1756702240861,0.18815022,107450.0,107440.0,0.18619802]
[1756702241016,0.34559022,107450.0,107440.0,0.18619802]
[1756702241991,0.68242274,107450.0,107440.0,4.762e-05]
[1756702242415,0.52498274,107450.0,107440.0,4.762e-05]
[1756702242616,0.002,107450.0,107440.0,0.1885249]
[1756702242839,0.34557308,107450.0,107440.0,0.18619802]
[1756702243049,0.15944,107450.0,107440.0,0.18619802]
[1756702243675,0.34557308,107450.0,107440.0,0.18619802]
[1756702244099,0.34357308,107450.0,107440.0,0.18619802]
[1756702244961,0.34357308,107450.0,107440.0,0.18719802]
[1756702247813,0.34357308,107450.0,107440.0,0.00104762]
[1756702248027,0.6804056,107450.0,107440.0,0.00104762]
[1756702248627,0.5229656,107450.0,107440.0,0.18719802]
[1756702248835,0.34357308,107450.0,107440.0,0.18719802]
[1756702249926,0.34457308,107450.0,107440.0,0.18719802]
[1756702250527,0.34357308,107450.0,107440.0,0.18719802]
[1756702251960,0.6804056,107450.0,107440.0,0.00104762]
[1756702252999,0.34357308,107450.0,107440.0,0.1895249]
[1756702253206,0.34357308,107450.0,107440.0,0.18719802]
[1756702253607,0.34457308,107450.0,107440.0,0.18719802]
[1756702253992,0.34357308,107450.0,107440.0,0.18719802]
[1756702256236,0.34357308,107450.0,107440.0,0.18619802]
[1756702256420,0.34557308,107450.0,107440.0,0.18619802]
[1756702257130,0.34457308,107450.0,107440.0,0.18719802]
[1756702258148,0.34457308,107450.0,107440.0,0.00104762]
[1756702258340,0.34457308,107450.0,107440.0,0.18719802]
[1756702260109,0.001,107450.0,107440.0,0.18719802]
[1756702260331,0.34457308,107450.0,107440.0,0.18719802]
[1756702266716,0.18713308,107450.0,107440.0,0.18719802]
[1756702266953,0.001,107450.0,107440.0,0.72403054]
[1756702267160,0.15844,107450.0,107440.0,0.72403054]
[1756702267537,0.15844,107450.0,107440.0,0.88147054]
[1756702268067,0.15844,107450.0,107440.0,0.54463802]
[1756702269109,0.001,107450.0,107440.0,0.54463802]
[1756702271583,0.001,107450.0,107440.0,1.53538937]
[1756702271785,0.18609844,107470.0,107460.0,0.18611576]
[1756702271988,0.34353844,107470.0,107460.0,0.18611576]
[1756702272597,0.34353844,107470.0,107460.0,0.19615549]
[1756702272966,0.15744,107470.0,107460.0,0.19615549]
[1756702273163,0.002,107470.0,107460.0,0.19615549]
[1756702273308,0.16144,107470.0,107460.0,0.19615549]
[1756702274098,0.15944,107470.0,107460.0,0.19615549]
[1756702274323,0.34553844,107470.0,107450.0,0.41267017]
[1756702274537,0.34453844,107470.0,107460.0,0.18611576]
[1756702274743,0.34553844,107470.0,107460.0,0.18611576]
[1756702275795,0.34453844,107470.0,107460.0,0.18611576]
[1756702277797,0.15844,107470.0,107460.0,0.18611576]
[1756702278002,0.001,107470.0,107460.0,0.18611576]
[1756702278274,0.1584,107470.0,107460.0,0.52294828]
[1756702278718,0.001,107470.0,107460.0,0.52294828]
[1756702278916,0.1584,107470.0,107460.0,0.52294828]
[1756702279119,0.001,107470.0,107460.0,0.52294828]
[1756702279329,0.1584,107470.0,107460.0,0.52294828]
[1756702279537,0.001,107470.0,107460.0,0.61592829]
[1756702279755,0.001,107470.0,107460.0,0.97686711]
[1756702280147,0.001,107470.0,107460.0,1.16221811]
[1756702281498,0.1574,107480.0,107470.0,0.18609844]
[1756702281703,0.1574,107480.0,107470.0,0.27907845]
[1756702282331,0.34348113,107480.0,107470.0,0.27907845]
[1756702282721,0.34448113,107480.0,107470.0,0.27907845]
[1756702283516,0.34448113,107480.0,107470.0,0.61591097]
[1756702283690,0.1584,107480.0,107470.0,0.61591097]
[1756702284516,0.34448113,107480.0,107470.0,0.61591097]
[1756702284727,0.1584,107480.0,107470.0,0.61591097]
[1756702287776,0.34448113,107480.0,107470.0,0.61591097]
[1756702288181,0.1584,107480.0,107470.0,0.61591097]
[1756702290845,0.34448113,107480.0,107470.0,0.61591097]
[1756702291628,0.34448113,107480.0,107470.0,0.27907845]
[1756702292671,0.34448113,107480.0,107460.0,0.55406676]
[1756702292672,0.68131365,107480.0,107460.0,0.55406676]
[1756702292883,0.34448113,107480.0,107470.0,0.18609844]
[1756702293082,0.68131365,107480.0,107470.0,0.18609844]
[1756702293634,0.68031365,107480.0,107460.0,0.61909577]
[1756702293857,0.68131365,107480.0,107460.0,0.61909577]
[1756702294443,0.68031365,107480.0,107460.0,0.61909577]
[1756702294638,0.68131365,107480.0,107460.0,0.61909577]
[1756702294868,0.68131365,107480.0,107470.0,0.18609844]
[1756702295139,0.68031365,107480.0,107470.0,0.18609844]
[1756702296700,0.68131365,107480.0,107470.0,0.18609844]
[1756702297138,0.68031365,107480.0,107470.0,0.18609844]
[1756702297368,0.34348113,107480.0,107470.0,0.18609844]
[1756702297953,0.34448113,107480.0,107470.0,0.18609844]
[1756702298643,0.68131365,107480.0,107470.0,0.18609844]
[1756702299823,0.68131365,107480.0,107460.0,0.61909577]
[1756702300547,0.68031365,107480.0,107470.0,0.18609844]
[1756702300768,0.34348113,107480.0,107470.0,0.18609844]
[1756702300978,0.68131365,107480.0,107470.0,0.18609844]
[1756702301747,0.68031365,107480.0,107460.0,0.61909577]
[1756702301952,0.68031365,107480.0,107470.0,0.18609844]
[1756702302952,0.68131365,107480.0,107470.0,0.18609844]
[1756702303545,0.68131365,107480.0,107460.0,0.61909577]
[1756702303745,0.33913994,107470.0,107450.0,0.72726679]
[1756702303950,0.34347576,107460.0,107450.0,0.8202468]
[1756702304107,0.34347576,107460.0,107450.0,0.4802468]
[1756702305562,0.15736,107460.0,107450.0,0.4802468]
[1756702305793,0.18609844,107470.0,107460.0,0.18611576]
[1756702306015,0.34345844,107470.0,107460.0,0.18611576]
[1756702306185,0.18611576,107460.0,107450.0,0.6376068]
[1756702306346,0.18611576,107460.0,107450.0,0.4832468]
[1756702306542,0.18611576,107460.0,107450.0,0.4812468]
[1756702306742,0.18611576,107460.0,107450.0,0.4802468]
[1756702307451,0.18611576,107460.0,107450.0,0.4812468]
[1756702307678,0.18611576,107460.0,107450.0,0.4802468]
[1756702308090,0.52293096,107470.0,107460.0,0.18611576]
[1756702308333,0.68029096,107470.0,107460.0,0.18611576]
[1756702308528,0.68029096,107470.0,107450.0,0.6386068]
[1756702308695,0.18611576,107460.0,107450.0,0.6386068]
[1756702309290,0.18611576,107460.0,107450.0,0.6376068]
[1756702310333,0.18611576,107460.0,107450.0,0.6386068]
[1756702310968,0.18611576,107460.0,107450.0,0.4812468]
[1756702311114,0.18611576,107460.0,107450.0,0.50460554]
[1756702313014,0.52294828,107460.0,107450.0,0.001]
[1756702313621,0.18611576,107460.0,107450.0,0.001]
[1756702314234,0.18611576,107460.0,107440.0,0.72652769]
[1756702315071,0.34347576,107460.0,107450.0,0.18613308]
[1756702315504,0.34447576,107460.0,107450.0,0.18613308]
[1756702315781,0.34447576,107460.0,107440.0,0.73660469]
[1756702315917,0.34347576,107460.0,107440.0,0.73660469]
[1756702316540,0.34347576,107460.0,107450.0,0.18713308]
[1756702316949,0.34347576,107460.0,107450.0,0.18613308]
[1756702317167,0.18611576,107460.0,107450.0,0.18613308]
[1756702317372,0.15736,107460.0,107450.0,0.18613308]
[1756702317574,0.34347576,107460.0,107450.0,0.18613308]
[1756702317777,0.34347576,107460.0,107450.0,0.18713308]
[1756702318765,0.34347576,107460.0,107450.0,0.001]
[1756702319169,0.68030828,107460.0,107450.0,0.001]
[1756702319700,0.34347576,107460.0,107450.0,0.001]
[1756702320306,0.34347576,107460.0,107450.0,0.18713308]
[1756702320532,0.34347576,107460.0,107450.0,0.001]
[1756702321731,0.18611576,107460.0,107450.0,0.18713308]
[1756702321982,0.34347576,107460.0,107450.0,0.001]
[1756702322779,0.34447576,107460.0,107450.0,0.001]
[1756702323183,0.34347576,107460.0,107450.0,0.001]
[1756702323410,0.18611576,107460.0,107450.0,0.18945974]
[1756702323592,0.34347576,107460.0,107450.0,0.18713308]
[1756702323797,0.18611576,107460.0,107450.0,0.18713308]
[1756702323998,0.34347576,107460.0,107450.0,0.18713308]
[1756702324600,0.22336236,107470.0,107460.0,0.18611576]
[1756702324796,0.37141744,107470.0,107460.0,0.18611576]
[1756702324999,0.26690518,107480.0,107470.0,0.18609844]
[1756702325209,0.35274518,107480.0,107470.0,0.18609844]
[1756702325582,0.18608113,107480.0,107470.0,0.18609844]
[1756702326070,0.35999247,107500.0,107480.0,0.18608113]
[1756702326279,0.15736,107490.0,107480.0,0.18608113]
[1756702326488,0.34342381,107490.0,107480.0,0.18608113]
[1756702327304,0.34351251,107490.0,107470.0,0.61591097]
[1756702327640,0.18608113,107480.0,107470.0,0.09298001]
[1756702328038,0.18608113,107480.0,107470.0,0.27907845]
[1756702328237,0.18608113,107480.0,107460.0,0.55278154]
[1756702328238,0.52291365,107480.0,107460.0,0.69278154]
[1756702328524,0.18609844,107470.0,107460.0,0.69278154]
[1756702328726,0.34345844,107470.0,107460.0,0.53542154]
[1756702329111,0.15736,107470.0,107460.0,0.53542154]
[1756702329898,0.15736,107470.0,107460.0,0.53642154]
[1756702330184,0.34344113,107480.0,107460.0,0.53642154]
[1756702330385,0.34344113,107480.0,107470.0,0.18842467]
[1756702330599,0.34344113,107480.0,107470.0,0.18609844]
[1756702331219,0.2234097,107490.0,107470.0,0.18609844]
[1756702331423,0.1954557,107490.0,107480.0,0.18840714]
[1756702331624,0.3528157,107490.0,107480.0,0.18608113]
[1756702332033,8.87e-05,107490.0,107480.0,0.18608113]
[1756702332364,0.1574087,107490.0,107480.0,0.18608113]
[1756702332978,0.1594087,107490.0,107480.0,0.18608113]
[1756702333431,0.1614087,107490.0,107480.0,0.18608113]
[1756702333795,0.1614087,107490.0,107480.0,0.99415248]
[1756702333796,0.0040887,107490.0,107480.0,0.99415248]
[1756702334203,0.0140887,107490.0,107480.0,0.99415248]
[1756702334781,0.0140887,107490.0,107480.0,0.83683248]
[1756702335072,0.0140887,107490.0,107480.0,0.99415248]
[1756702335476,0.0140887,107490.0,107480.0,0.65731996]
[1756702338971,0.0140887,107490.0,107480.0,0.99415248]
[1756702339168,0.0140887,107490.0,107480.0,1.33415248]
[1756702339642,0.0140887,107490.0,107480.0,1.36209848]
[1756702339776,0.0120887,107490.0,107480.0,1.36209848]
[1756702340199,0.0100887,107490.0,107480.0,1.36209848]
[1756702340600,0.0100887,107490.0,107480.0,1.20577848]
[1756702340800,0.0100887,107490.0,107480.0,1.36309848]
[1756702341074,0.25872759,107520.0,107510.0,0.1860292]
[1756702341075,0.41604759,107520.0,107510.0,0.1860292]
[1756702341280,0.23044693,107520.0,107510.0,0.1860292]
[1756702341403,0.41645883,107520.0,107510.0,0.1860292]
[1756702342477,0.41745883,107520.0,107510.0,0.1860292]
[1756702343431,0.41845883,107520.0,107510.0,0.1860292]
[1756702343671,0.34693883,107520.0,107510.0,0.1860292]
[1756702344487,0.16092693,107520.0,107510.0,0.1860292]
[1756702345277,0.16088693,107520.0,107510.0,0.1860292]
[1756702346419,0.00360693,107520.0,107510.0,0.27900921]
[1756702346628,0.00360693,107520.0,107510.0,1.32678055]
[1756702346812,0.00287643,107520.0,107510.0,1.32678055]
[1756702347039,0.00287643,107520.0,107510.0,1.48822055]
[1756702347249,0.00187643,107520.0,107510.0,1.48822055]
[1756702347867,0.00087643,107520.0,107510.0,1.48822055]
[1756702348429,0.00087643,107520.0,107510.0,1.32678055]
[1756702348638,0.00087643,107520.0,107510.0,0.95134803]
[1756702348790,0.00087643,107520.0,107510.0,0.99194803]
[1756702348986,0.00087643,107520.0,107510.0,1.15334803]
[1756702349391,0.00087643,107520.0,107510.0,1.15134803]
[1756702349630,0.00087643,107520.0,107510.0,1.15534803]
[1756702349834,0.00087643,107520.0,107510.0,1.15234803]
[1756702350236,0.00087643,107520.0,107510.0,1.18128603]
[1756702350434,0.00087643,107520.0,107510.0,1.01988603]
[1756702350634,0.00087643,107520.0,107510.0,1.18124603]
[1756702350875,0.00087643,107520.0,107510.0,1.17924603]
[1756702351378,0.00087643,107520.0,107510.0,1.18024603]
[1756702351588,0.00087643,107520.0,107510.0,1.17920603]
[1756702352391,0.52372085,107520.0,107510.0,0.76900921]
[1756702352620,0.52372085,107520.0,107510.0,0.16124]
[1756702352949,0.52372085,107520.0,107500.0,0.62687168]
[1756702353146,0.52372085,107520.0,107500.0,0.71985169]
[1756702353348,0.52372085,107520.0,107510.0,0.1860292]
[1756702354752,0.18688833,107520.0,107510.0,0.1860292]
[1756702354901,0.52372085,107520.0,107510.0,0.1860292]
[1756702355690,0.52472085,107520.0,107510.0,0.1860292]
[1756702356595,0.1860292,107510.0,107500.0,0.83191169]
[1756702356844,0.52572085,107520.0,107500.0,0.49191169]
[1756702357047,0.52472085,107520.0,107500.0,0.49191169]
[1756702357466,0.52572085,107520.0,107510.0,0.1860292]
[1756702357657,0.52472085,107520.0,107510.0,0.1860292]
[1756702358061,0.52572085,107520.0,107510.0,0.1860292]
[1756702358298,0.52572085,107520.0,107500.0,0.79013927]
[1756702358299,0.1860292,107510.0,107500.0,0.79013927]
[1756702358653,0.18788833,107520.0,107500.0,0.79013927]
[1756702358887,0.52572085,107520.0,107500.0,0.79013927]
[1756702359486,0.52472085,107520.0,107500.0,0.79013927]
[1756702359919,0.52572085,107520.0,107500.0,0.79013927]
[1756702360137,0.1860292,107510.0,107500.0,0.79013927]
[1756702360331,0.52372085,107520.0,107500.0,0.79013927]
[1756702360549,0.52472085,107520.0,107510.0,0.1860292]
[1756702361343,0.52472085,107520.0,107500.0,0.79013927]
[1756702361503,0.1860292,107510.0,107500.0,0.79013927]
[1756702362358,0.52472085,107520.0,107500.0,0.79013927]
[1756702362578,0.52286172,107510.0,107500.0,0.19595926]
[1756702362786,0.52286172,107510.0,107500.0,0.35663926]
[1756702363008,0.47110267,107510.0,107500.0,0.39830692]
[1756702363213,0.47110267,107510.0,107500.0,0.38837853]
[1756702363417,0.47110267,107510.0,107500.0,0.20234766]
[1756702363618,0.47110267,107510.0,107500.0,0.38839417]
[1756702364033,0.47110267,107510.0,107490.0,0.45450219]
[1756702364238,0.18604651,107500.0,107490.0,0.19533668]
[1756702364394,0.18604651,107500.0,107490.0,0.35605668]
[1756702366016,0.13427015,107510.0,107500.0,0.18604651]
[1756702366295,0.47341009,107510.0,107500.0,0.18604651]
[1756702366482,0.18604651,107500.0,107490.0,0.19533668]
[1756702366655,0.18604651,107500.0,107490.0,0.36586943]
[1756702367075,0.63170267,107510.0,107490.0,0.36586943]
[1756702367314,0.18604651,107500.0,107490.0,0.36586943]
[1756702368137,0.18604651,107500.0,107490.0,0.35593668]
[1756702368560,0.18606381,107490.0,107480.0,0.59557163]
[1756702368768,0.18606381,107490.0,107480.0,0.38822663]
[1756702369188,0.52287903,107500.0,107480.0,0.38822663]
[1756702369401,0.68351903,107500.0,107490.0,0.18606381]
[1756702369974,0.34668651,107500.0,107490.0,0.18606381]
[1756702370174,0.52287903,107500.0,107490.0,0.18606381]
[1756702370405,0.16064,107500.0,107490.0,0.18606381]
[1756702370870,0.16164,107500.0,107490.0,0.18606381]
[1756702371074,0.002,107500.0,107490.0,0.18606381]
[1756702371508,0.001,107500.0,107490.0,0.47904382]
[1756702371724,0.001,107500.0,107490.0,0.81587634]
[1756702372964,0.72204644,107520.0,107510.0,0.1860292]
[1756702373178,0.38521392,107520.0,107510.0,0.1860292]
[1756702373904,0.38521392,107520.0,107500.0,0.34711088]
[1756702374113,0.1860292,107510.0,107500.0,0.34711088]
[1756702378057,0.1860292,107510.0,107500.0,0.18603088]
[1756702378943,0.1860292,107510.0,107490.0,0.64910701]
[1756702379264,0.1860292,107510.0,107500.0,0.18604651]
[1756702379740,0.52286172,107510.0,107490.0,0.64910701]
[1756702379995,0.52286172,107510.0,107500.0,0.18604651]
[1756702380424,0.3467492,107510.0,107500.0,0.18604651]
[1756702380807,0.3477492,107510.0,107500.0,0.18604651]
[1756702381261,0.3467492,107510.0,107500.0,0.18604651]
[1756702382254,0.1860292,107510.0,107500.0,0.18604651]
[1756702383498,0.52486172,107510.0,107490.0,0.64894701]
[1756702383698,0.52386172,107510.0,107490.0,0.64894701]
[1756702383882,0.1860292,107510.0,107500.0,0.18604651]
[1756702384263,0.52286172,107510.0,107500.0,0.18604651]
[1756702384462,0.52286172,107510.0,107490.0,0.64894701]
[1756702384634,0.52286172,107510.0,107500.0,0.18604651]
[1756702385431,0.52286172,107510.0,107490.0,0.48834701]
[1756702385626,0.52286172,107510.0,107490.0,0.64882701]
[1756702385880,0.52286172,107510.0,107490.0,0.48834701]
[1756702386084,0.52286172,107510.0,107490.0,0.64882701]
[1756702386238,0.52386172,107510.0,107490.0,0.64882701]
[1756702386451,0.52286172,107510.0,107490.0,0.64882701]
[1756702386865,0.52386172,107510.0,107490.0,0.64882701]
[1756702387044,0.52486172,107510.0,107490.0,0.64882701]
[1756702387261,0.52486172,107510.0,107500.0,0.18604651]
[1756702387675,0.52386172,107510.0,107500.0,0.18604651]
[1756702387886,0.52486172,107510.0,107500.0,0.18604651]
[1756702388094,0.16132,107510.0,107500.0,0.18604651]
[1756702388331,0.00087643,107520.0,107510.0,0.1860292]
[1756702388521,0.16127643,107520.0,107510.0,0.3464292]
[1756702388951,1.25005238,107530.0,107520.0,0.1860119]
[1756702389164,0.1860119,107520.0,107510.0,0.3464292]
[1756702389368,0.3463719,107520.0,107510.0,0.3464292]
[1756702389594,0.72492248,107530.0,107520.0,0.1860119]
[1756702389801,0.81380248,107530.0,107520.0,0.1860119]
[1756702390009,0.81376248,107530.0,107520.0,0.1860119]
[1756702390231,0.01044762,107530.0,107520.0,0.1860119]
[1756702390442,0.17376762,107530.0,107520.0,0.1860119]
[1756702390653,0.36206964,107530.0,107520.0,0.1860119]
[1756702390889,0.35976222,107530.0,107520.0,0.1860119]
[1756702391095,0.36176222,107530.0,107520.0,0.1860119]
[1756702391750,0.17576762,107530.0,107520.0,0.1860119]
[1756702392005,0.36406964,107530.0,107520.0,0.1860119]
[1756702392198,0.36176222,107530.0,107520.0,0.1860119]
[1756702393933,0.36176222,107530.0,107510.0,0.5462292]
[1756702394140,0.69859474,107530.0,107510.0,0.63920921]
[1756702394289,0.69859474,107530.0,107520.0,0.1860119]
[1756702394734,0.69659474,107530.0,107520.0,0.1860119]
[1756702394935,0.69359474,107530.0,107520.0,0.1860119]
[1756702395099,0.69559474,107530.0,107520.0,0.1860119]
[1756702395314,0.69559474,107530.0,107510.0,0.47900921]
[1756702395685,0.69559474,107530.0,107520.0,0.1860119]
[1756702396455,0.69659474,107530.0,107520.0,0.1860119]
[1756702396678,0.69559474,107530.0,107520.0,0.1860119]
[1756702397177,0.69859474,107530.0,107520.0,0.1860119]
[1756702397519,0.69859474,107530.0,107510.0,0.63920921]
[1756702397695,0.69859474,107530.0,107510.0,0.68104059]
[1756702397925,0.1860119,107520.0,107510.0,0.68088059]
[1756702398140,0.69859474,107530.0,107520.0,0.1860119]
[1756702398387,0.69359474,107530.0,107510.0,0.68088059]
[1756702399468,0.69331474,107530.0,107520.0,0.18833704]
[1756702399614,0.35848222,107530.0,107520.0,0.1860119]
[1756702399814,0.01544762,107530.0,107520.0,0.1860119]
[1756702400018,0.17552762,107530.0,107520.0,0.1860119]
[1756702400225,0.01544762,107530.0,107520.0,0.1860119]
[1756702400426,0.01344762,107530.0,107520.0,0.1860119]
[1756702400660,0.01244762,107530.0,107520.0,0.1860119]
[1756702400854,0.01544762,107530.0,107520.0,0.19605818]
[1756702401482,0.01544762,107530.0,107520.0,0.62587071]
[1756702402043,0.01544762,107530.0,107520.0,0.28903819]
[1756702402246,0.01544762,107530.0,107520.0,0.43899191]
[1756702402645,0.01344762,107530.0,107520.0,0.43899191]
[1756702402873,0.01044762,107530.0,107520.0,0.43899191]
[1756702403081,0.01244762,107530.0,107520.0,0.43899191]
[1756702403280,0.01544762,107530.0,107520.0,0.27899191]
[1756702403536,0.01244762,107530.0,107520.0,0.43891191]
[1756702403921,0.01044762,107530.0,107520.0,0.43891191]
[1756702405023,0.01044762,107530.0,107520.0,0.27899191]
[1756702405426,0.01044762,107530.0,107520.0,0.43883191]
[1756702405654,0.01044762,107530.0,107520.0,0.27899191]
[1756702405863,0.01044762,107530.0,107520.0,0.43883191]
[1756702406934,0.01044762,107530.0,107520.0,0.44847107]
[1756702407929,0.01044762,107530.0,107520.0,0.28863107]
[1756702408085,0.01044762,107530.0,107520.0,0.44831107]
[1756702409106,0.01044762,107530.0,107520.0,0.28863107]
[1756702409304,0.01044762,107530.0,107520.0,0.44831107]
[1756702409432,0.01044762,107530.0,107520.0,0.28863107]
[1756702409618,0.01044762,107530.0,107520.0,0.44835107]
[1756702410674,0.01039982,107530.0,107520.0,0.44835107]
[1756702412333,0.19639442,107530.0,107520.0,0.44835107]
[1756702413485,0.01039982,107530.0,107520.0,0.44835107]
[1756702415449,0.01039982,107530.0,107520.0,0.78518359]
[1756702415965,0.01039982,107530.0,107520.0,0.44835107]
[1756702416602,0.01039982,107530.0,107520.0,0.44935107]
[1756702416823,0.01039982,107530.0,107520.0,0.45035107]
[1756702417491,0.01039982,107530.0,107520.0,0.78718359]
[1756702418239,0.01039982,107530.0,107520.0,0.45035107]
[1756702418477,0.01039982,107530.0,107520.0,0.78718359]
[1756702419375,0.01039982,107530.0,107520.0,0.45007107]
[1756702420945,0.01039982,107530.0,107520.0,0.45027107]
[1756702422252,0.01039982,107530.0,107520.0,0.29063107]
[1756702422457,0.01039982,107530.0,107520.0,0.45027107]
[1756702423990,0.01039982,107530.0,107520.0,0.45023107]
[1756702424167,0.01039982,107530.0,107520.0,0.29063107]
[1756702424372,0.01039982,107530.0,107520.0,0.45015107]
[1756702428154,0.01039982,107530.0,107520.0,0.45003107]
[1756702428302,0.01039982,107530.0,107520.0,0.44991107]
[1756702430029,0.01039982,107530.0,107520.0,0.29063107]
[1756702430230,0.01039982,107530.0,107520.0,0.44987107]
[1756702430432,0.53322694,107530.0,107520.0,0.002]
[1756702430697,0.69246694,107530.0,107520.0,0.002]
[1756702431701,0.69246694,107530.0,107520.0,0.001]
[1756702432059,0.69346694,107530.0,107520.0,0.001]
[1756702432669,0.1860119,107520.0,107510.0,0.38759524]
[1756702433567,0.1860119,107520.0,107510.0,0.39720705]
[1756702436832,0.56116794,107530.0,107510.0,0.39720705]
[1756702437039,0.1860119,107520.0,107510.0,0.39720705]
[1756702437994,0.1860119,107520.0,107510.0,0.35488101]
[1756702438646,0.52284442,107520.0,107510.0,0.35476101]
[1756702438792,0.52284442,107520.0,107510.0,0.3450292]
[1756702439435,0.1860119,107520.0,107510.0,0.3450292]
[1756702440311,0.56116794,107530.0,107510.0,0.35493333]
[1756702440507,0.38317542,107530.0,107520.0,0.1860119]
[1756702440761,0.72000794,107530.0,107520.0,0.1860119]
[1756702441448,0.38317542,107530.0,107510.0,0.35493333]
[1756702441647,0.72000794,107530.0,107510.0,0.35493333]
[1756702441857,0.72100794,107530.0,107510.0,0.39696163]
[1756702442172,0.72104794,107530.0,107520.0,0.1860119]
[1756702442405,0.56116794,107530.0,107520.0,0.1860119]
[1756702442598,0.72004794,107530.0,107520.0,0.1860119]
[1756702442809,0.1860119,107520.0,107510.0,0.39696163]
[1756702444637,0.1860119,107520.0,107510.0,0.23796163]
[1756702444987,0.1860119,107520.0,107510.0,0.2280575]
[1756702445184,0.52284442,107520.0,107510.0,0.2007883]
[1756702446840,0.52284442,107520.0,107510.0,0.0420283]
[1756702447041,0.52284442,107520.0,107500.0,0.93202479]
[1756702447198,0.52284442,107520.0,107500.0,1.0250048]
[1756702447398,0.52384442,107520.0,107500.0,1.0250048]
[1756702448384,0.52384442,107520.0,107510.0,0.3447492]
[1756702448586,0.52284442,107520.0,107510.0,0.3447492]
[1756702449019,0.52384442,107520.0,107510.0,0.3446692]
[1756702449198,0.52484442,107520.0,107510.0,0.3446692]
[1756702449395,0.52384442,107520.0,107510.0,0.3446692]
[1756702449640,0.52284442,107520.0,107510.0,0.3446692]
[1756702449844,0.52284442,107520.0,107500.0,1.0248848]
[1756702450058,0.52484442,107520.0,107500.0,1.0248848]
[1756702450273,0.1880119,107520.0,107510.0,0.1860292]
[1756702450577,0.1880119,107520.0,107500.0,1.0248848]
[1756702451036,0.1880119,107520.0,107500.0,1.06684159]
[1756702451239,0.1870119,107520.0,107500.0,1.06684159]
[1756702451606,0.1880119,107520.0,107510.0,0.1860292]
[1756702452433,0.3446919,107520.0,107510.0,0.1860292]
[1756702452847,0.3466919,107520.0,107510.0,0.1860292]
[1756702453069,0.3466919,107520.0,107510.0,0.1586]
[1756702453289,0.3456919,107520.0,107510.0,0.1586]
[1756702453755,0.3466919,107520.0,107510.0,0.1586]
[1756702453975,0.3466919,107520.0,107500.0,0.90820159]
[1756702454177,0.3466919,107520.0,107500.0,1.06676159]
[1756702454433,0.3456919,107520.0,107500.0,1.06676159]
[1756702455065,0.3446919,107520.0,107500.0,1.06676159]
[1756702456523,0.3446919,107520.0,107500.0,0.90820159]
[1756702456775,0.3446919,107520.0,107510.0,0.15844]
[1756702456979,0.1860292,107510.0,107500.0,0.90820159]
[1756702457222,0.3456919,107520.0,107500.0,1.06664159]
[1756702457567,0.68252442,107520.0,107500.0,1.06664159]
[1756702457773,0.68352442,107520.0,107500.0,1.06664159]
[1756702458192,0.68252442,107520.0,107500.0,1.06664159]
[1756702459759,0.68252442,107520.0,107500.0,1.03870059]
[1756702459963,0.68352442,107520.0,107510.0,0.1860292]
[1756702460339,0.52484442,107520.0,107510.0,0.1860292]
[1756702460524,0.002,107520.0,107510.0,0.1860292]
[1756702460939,0.001,107520.0,107510.0,0.1860292]
[1756702461402,0.00430742,107520.0,107510.0,0.1860292]
[1756702461582,0.001,107520.0,107510.0,0.76584173]
[1756702462020,0.01039982,107530.0,107520.0,0.1860119]
[1756702462227,0.01039982,107530.0,107520.0,0.97418443]
[1756702462628,0.01039982,107530.0,107520.0,1.00212143]
[1756702463365,0.01039982,107530.0,107520.0,0.66528891]
[1756702463566,0.01039982,107530.0,107520.0,0.50692891]
[1756702463768,0.01039982,107530.0,107520.0,0.66528891]
[1756702464534,0.01039982,107530.0,107520.0,0.66524891]
[1756702468401,0.01039982,107530.0,107520.0,1.02302025]
[1756702468541,0.01039982,107530.0,107520.0,1.02402025]
[1756702468956,0.01039982,107530.0,107520.0,1.02502025]
[1756702469438,0.01039982,107530.0,107520.0,1.36502025]
[1756702471869,0.01039982,107530.0,107520.0,1.20670025]
[1756702472076,0.01039982,107530.0,107520.0,1.36478025]
[1756702474663,0.01039982,107530.0,107520.0,1.35478025]
[1756702475491,0.01039982,107530.0,107520.0,1.35474025]
[1756702481558,0.01039982,107530.0,107520.0,1.69157277]
[1756702483662,0.01039982,107530.0,107520.0,2.76226177]
[1756702484843,0.01039982,107530.0,107520.0,2.26738925]
[1756702485054,0.01039982,107530.0,107520.0,2.42542925]
[1756702486751,0.01039982,107530.0,107520.0,2.49542925]
[1756702487993,0.00291581,107530.0,107520.0,2.49542925]
[1756702488267,0.00291581,107530.0,107520.0,2.83226177]
[1756702488445,0.00291581,107530.0,107520.0,2.85089177]
[1756702488884,0.00291581,107530.0,107520.0,3.35089177]
[1756702489264,0.00291581,107530.0,107520.0,3.34989177]
[1756702489666,0.00291581,107530.0,107520.0,3.35089177]
[1756702490079,0.00291581,107530.0,107520.0,3.34989177]
[1756702490437,0.00291581,107530.0,107520.0,3.35289177]
[1756702490871,0.00291581,107530.0,107520.0,3.35789177]
[1756702491501,0.00291581,107530.0,107520.0,3.40789177]
[1756702491910,0.00291581,107530.0,107520.0,2.55755673]
[1756702492115,0.00291581,107530.0,107520.0,3.40785177]
[1756702493310,0.00291581,107530.0,107520.0,3.45783878]
[1756702496050,0.00291581,107530.0,107520.0,3.29983878]
[1756702496264,0.00084071,107530.0,107520.0,3.45783878]
[1756702497585,1e-08,107530.0,107520.0,3.45783878]
[1756702497791,0.0004,107540.0,107530.0,0.89693342]
[1756702498009,0.0004,107540.0,107530.0,5.54934195]
[1756702498389,0.0004,107540.0,107530.0,5.55974195]
[1756702498594,0.0004,107540.0,107530.0,5.58760393]
[1756702498888,0.0004,107540.0,107530.0,5.56180893]
[1756702499197,0.0004,107540.0,107530.0,5.40680893]
[1756702499416,0.0004,107540.0,107530.0,3.69167493]
[1756702499568,0.0004,107540.0,107530.0,3.84967493]
[1756702499792,0.0004,107540.0,107530.0,2.38434993]
[1756702500221,0.0004,107540.0,107530.0,2.22634993]